[Event "Early-Titled-Tuesday-Blitz-October-03-2023"]
[Site "Chess.com"]
[Date "2023.10.03"]
[Round "6"]
[White "Kgutierrez95"]
[Black "dodoucb"]
[Result "1-0"]
[WhiteElo "2249"]
[BlackElo "2443"]
[TimeControl "180+1"]
[EndTime "9:06:55 PDT"]
[Termination "Kgutierrez95 won on time"]

1. e4 {[%clk 0:03:00.9]} 1... c6 {[%clk 0:02:59.8]} 2. d4 {[%clk 0:02:59.9]}
2... d5 {[%clk 0:03:00.7]} 3. Nc3 {[%clk 0:03:00.1]} 3... dxe4 {[%clk
0:03:00.1]} 4. Nxe4 {[%clk 0:03:01]} 4... Bf5 {[%clk 0:03:00.5]} 5. Ng3 {[%clk
0:03:01.1]} 5... Bg6 {[%clk 0:03:00]} 6. h4 {[%clk 0:03:01.1]} 6... h6 {[%clk
0:03:00.5]} 7. h5 {[%clk 0:03:01]} 7... Bh7 {[%clk 0:02:59.7]} 8. Nf3 {[%clk
0:03:01.6]} 8... Nd7 {[%clk 0:02:59.6]} 9. Bd3 {[%clk 0:03:02.1]} 9... Bxd3
{[%clk 0:03:00.1]} 10. Qxd3 {[%clk 0:03:02.3]} 10... e6 {[%clk 0:03:01]} 11. Bd2
{[%clk 0:03:02]} 11... Ngf6 {[%clk 0:02:55.4]} 12. O-O-O {[%clk 0:03:00.5]}
12... Be7 {[%clk 0:02:54.9]} 13. Ne4 {[%clk 0:02:54.9]} 13... Nxe4 {[%clk
0:02:51.2]} 14. Qxe4 {[%clk 0:02:55.8]} 14... Nf6 {[%clk 0:02:45.7]} 15. Qe2
{[%clk 0:02:55.9]} 15... O-O {[%clk 0:02:44.7]} 16. Kb1 {[%clk 0:02:47.3]} 16...
Re8 {[%clk 0:02:31.6]} 17. Ne5 {[%clk 0:02:20.5]} 17... Qxd4 {[%clk 0:01:48.1]}
18. Bxh6 {[%clk 0:02:06.7]} 18... Qe4 {[%clk 0:01:47.7]} 19. Qxe4 {[%clk
0:02:05.3]} 19... Nxe4 {[%clk 0:01:48.6]} 20. Be3 {[%clk 0:02:04.8]} 20... Rad8
{[%clk 0:01:16.6]} 21. Rxd8 {[%clk 0:01:45]} 21... Rxd8 {[%clk 0:01:14.6]} 22.
Kc1 {[%clk 0:01:44.5]} 22... Rd5 {[%clk 0:00:59.3]} 23. Nd3 {[%clk 0:01:36.6]}
23... Bg5 {[%clk 0:00:34.8]} 24. f4 {[%clk 0:01:34.4]} 24... Bf6 {[%clk
0:00:29.3]} 25. g4 {[%clk 0:01:31.5]} 25... Bd4 {[%clk 0:00:23.6]} 26. Bxd4
{[%clk 0:01:27.3]} 26... Rxd4 {[%clk 0:00:24.5]} 27. h6 {[%clk 0:01:23.7]} 27...
gxh6 {[%clk 0:00:19.4]} 28. Rxh6 {[%clk 0:01:21.9]} 28... c5 {[%clk 0:00:20]}
29. Rh2 {[%clk 0:00:52.7]} 29... c4 {[%clk 0:00:16.5]} 30. Ne5 {[%clk
0:00:52.3]} 30... Kg7 {[%clk 0:00:12.2]} 31. c3 {[%clk 0:00:49.6]} 31... Rd5
{[%clk 0:00:08.4]} 32. Nxc4 {[%clk 0:00:48.3]} 32... Nc5 {[%clk 0:00:08.8]} 33.
Kc2 {[%clk 0:00:43.3]} 33... Nd3 {[%clk 0:00:06.8]} 34. Ne3 {[%clk 0:00:39.9]}
34... Ne1+ {[%clk 0:00:05]} 35. Kc1 {[%clk 0:00:36.7]} 35... Rd3 {[%clk
0:00:03.3]} 36. Re2 {[%clk 0:00:33.8]} 36... Nf3 {[%clk 0:00:02.2]} 37. Kc2
{[%clk 0:00:32.9]} 37... Rd7 {[%clk 0:00:01.1]} 38. Nc4 {[%clk 0:00:30.1]} 1-0

[Event "Early-Titled-Tuesday-Blitz-October-03-2023"]
[Site "Chess.com"]
[Date "2023.10.03"]
[Round "6"]
[White "mmDarko"]
[Black "Ranindu2003"]
[Result "0-1"]
[WhiteElo "2313"]
[BlackElo "2718"]
[TimeControl "180+1"]
[EndTime "9:07:01 PDT"]
[Termination "Ranindu2003 won on time"]

1. d4 {[%clk 0:02:44.5]} 1... d5 {[%clk 0:02:44.5]} 2. Nf3 {[%clk 0:02:43.2]}
2... Nf6 {[%clk 0:02:43.8]} 3. e3 {[%clk 0:02:43.4]} 3... Bg4 {[%clk 0:02:38.1]}
4. Nbd2 {[%clk 0:02:41.6]} 4... Nbd7 {[%clk 0:02:37.3]} 5. c4 {[%clk 0:02:38.6]}
5... e6 {[%clk 0:02:37]} 6. h3 {[%clk 0:02:35.1]} 6... Bh5 {[%clk 0:02:36.4]} 7.
Be2 {[%clk 0:02:19.8]} 7... c6 {[%clk 0:02:36.1]} 8. O-O {[%clk 0:02:19.8]} 8...
Bd6 {[%clk 0:02:34.3]} 9. b3 {[%clk 0:02:16.4]} 9... Qe7 {[%clk 0:02:29.2]} 10.
Bb2 {[%clk 0:02:15.4]} 10... O-O {[%clk 0:02:23.1]} 11. Ne5 {[%clk 0:02:10.8]}
11... Bxe2 {[%clk 0:02:12.8]} 12. Qxe2 {[%clk 0:02:11.7]} 12... Rac8 {[%clk
0:01:54.9]} 13. e4 {[%clk 0:02:08.4]} 13... Bxe5 {[%clk 0:01:45.9]} 14. dxe5
{[%clk 0:02:08.1]} 14... Nxe4 {[%clk 0:01:46.8]} 15. Nxe4 {[%clk 0:02:07.7]}
15... dxe4 {[%clk 0:01:47.7]} 16. Qxe4 {[%clk 0:02:08]} 16... Rfd8 {[%clk
0:01:46.7]} 17. Rad1 {[%clk 0:02:01.9]} 17... Qb4 {[%clk 0:01:43.2]} 18. Rd6
{[%clk 0:01:23.1]} 18... Qa5 {[%clk 0:01:14.4]} 19. Rfd1 {[%clk 0:00:54.1]}
19... Nf8 {[%clk 0:01:12.1]} 20. Qd4 {[%clk 0:00:41.8]} 20... Re8 {[%clk
0:01:07.8]} 21. a3 {[%clk 0:00:36.5]} 21... Ng6 {[%clk 0:01:03.6]} 22. g3 {[%clk
0:00:24.5]} 22... Ne7 {[%clk 0:01:02.3]} 23. Rd7 {[%clk 0:00:18.6]} 23... Nf5
{[%clk 0:01:02.7]} 24. Qd2 {[%clk 0:00:17.2]} 24... Qb6 {[%clk 0:01:02.7]} 25.
b4 {[%clk 0:00:16]} 25... c5 {[%clk 0:00:59.8]} 26. b5 {[%clk 0:00:14.5]} 26...
a6 {[%clk 0:00:59.1]} 27. a4 {[%clk 0:00:14.3]} 27... axb5 {[%clk 0:00:59.3]}
28. axb5 {[%clk 0:00:14.9]} 28... Qa7 {[%clk 0:00:57.3]} 29. g4 {[%clk
0:00:13.9]} 29... Nh4 {[%clk 0:00:55.9]} 30. Qf4 {[%clk 0:00:09.2]} 30... Rf8
{[%clk 0:00:56]} 31. Qg3 {[%clk 0:00:06.6]} 31... Ng6 {[%clk 0:00:54.1]} 32. h4
{[%clk 0:00:05]} 32... Qa2 {[%clk 0:00:48.4]} 33. R1d2 {[%clk 0:00:03.9]} 33...
Qxc4 {[%clk 0:00:48.2]} 34. h5 {[%clk 0:00:04.1]} 34... Nf4 {[%clk 0:00:48.5]}
35. h6 {[%clk 0:00:03.7]} 35... Ne2+ {[%clk 0:00:46.3]} 36. Rxe2 {[%clk
0:00:03.5]} 36... Qxe2 {[%clk 0:00:47.2]} 37. hxg7 {[%clk 0:00:03.8]} 37... Rfd8
{[%clk 0:00:46.1]} 38. Rxd8+ {[%clk 0:00:02.2]} 38... Rxd8 {[%clk 0:00:47]} 39.
Qh4 {[%clk 0:00:02]} 39... Rd1+ {[%clk 0:00:46.4]} 40. Kh2 {[%clk 0:00:02.6]}
40... Qf3 {[%clk 0:00:40.3]} 41. Qd8+ {[%clk 0:00:01.4]} 41... Rxd8 {[%clk
0:00:38.4]} 0-1

[Event "Early-Titled-Tuesday-Blitz-October-03-2023"]
[Site "Chess.com"]
[Date "2023.10.03"]
[Round "6"]
[White "SanchezKelvin"]
[Black "ploxoi"]
[Result "0-1"]
[WhiteElo "2605"]
[BlackElo "2473"]
[TimeControl "180+1"]
[EndTime "9:07:02 PDT"]
[Termination "ploxoi won on time"]

1. e4 {[%clk 0:03:00.9]} 1... c5 {[%clk 0:02:59.3]} 2. Nf3 {[%clk 0:03:00.7]}
2... e6 {[%clk 0:02:59.8]} 3. d4 {[%clk 0:03:01.1]} 3... cxd4 {[%clk 0:03:00.7]}
4. Nxd4 {[%clk 0:03:02]} 4... Nc6 {[%clk 0:03:01.6]} 5. Nc3 {[%clk 0:03:01.8]}
5... Qc7 {[%clk 0:03:02]} 6. Be3 {[%clk 0:03:02.3]} 6... a6 {[%clk 0:03:01.7]}
7. Qf3 {[%clk 0:03:02.4]} 7... Bd6 {[%clk 0:02:56.8]} 8. O-O-O {[%clk
0:03:01.9]} 8... Be5 {[%clk 0:02:54]} 9. g3 {[%clk 0:03:01.9]} 9... Nf6 {[%clk
0:02:53.6]} 10. Qe2 {[%clk 0:02:59.5]} 10... O-O {[%clk 0:02:53.1]} 11. f4
{[%clk 0:02:59]} 11... Bxd4 {[%clk 0:02:53.1]} 12. Bxd4 {[%clk 0:02:59.8]} 12...
Nxd4 {[%clk 0:02:54]} 13. Rxd4 {[%clk 0:03:00.3]} 13... d6 {[%clk 0:02:54.3]}
14. Rc4 {[%clk 0:02:55.3]} 14... Qe7 {[%clk 0:02:40.2]} 15. Bg2 {[%clk
0:02:53.3]} 15... e5 {[%clk 0:02:35.5]} 16. Rd1 {[%clk 0:02:39.4]} 16... b5
{[%clk 0:02:34.7]} 17. Rc6 {[%clk 0:02:32.7]} 17... Rd8 {[%clk 0:02:27.6]} 18.
fxe5 {[%clk 0:02:29.1]} 18... Qxe5 {[%clk 0:02:26.5]} 19. Qd3 {[%clk 0:02:22.1]}
19... Bg4 {[%clk 0:02:22.5]} 20. Rd2 {[%clk 0:02:19.8]} 20... Ne8 {[%clk
0:01:53]} 21. Nd5 {[%clk 0:02:13.4]} 21... Be6 {[%clk 0:01:49]} 22. Qc3 {[%clk
0:01:59.1]} 22... Qxc3 {[%clk 0:01:43.9]} 23. Nxc3 {[%clk 0:01:56.4]} 23... Rac8
{[%clk 0:01:44]} 24. Rxa6 {[%clk 0:01:54.6]} 24... b4 {[%clk 0:01:36]} 25. Nd5
{[%clk 0:01:54.2]} 25... Bxd5 {[%clk 0:01:36.5]} 26. Rxd5 {[%clk 0:01:52.4]}
26... Nc7 {[%clk 0:01:36.2]} 27. Raxd6 {[%clk 0:01:47.6]} 27... Nxd5 {[%clk
0:01:36.5]} 28. Rxd8+ {[%clk 0:01:45.8]} 28... Rxd8 {[%clk 0:01:37.4]} 29. exd5
{[%clk 0:01:46]} 29... Kf8 {[%clk 0:01:38.1]} 30. Kd2 {[%clk 0:01:42]} 30... Ke7
{[%clk 0:01:38.3]} 31. c4 {[%clk 0:01:42.4]} 31... Kd6 {[%clk 0:01:33.8]} 32.
Kc2 {[%clk 0:01:40.8]} 32... Kc5 {[%clk 0:01:33.5]} 33. Kb3 {[%clk 0:01:40.8]}
33... f5 {[%clk 0:01:32.4]} 34. a3 {[%clk 0:01:39.8]} 34... Rb8 {[%clk
0:01:31.1]} 35. a4 {[%clk 0:01:39.1]} 35... g5 {[%clk 0:01:27]} 36. a5 {[%clk
0:01:38]} 36... f4 {[%clk 0:01:20]} 37. gxf4 {[%clk 0:01:37.8]} 37... gxf4
{[%clk 0:01:20.9]} 38. Ka4 {[%clk 0:01:34.8]} 38... Ra8 {[%clk 0:01:03.1]} 39.
b3 {[%clk 0:01:27.7]} 39... Ra6 {[%clk 0:00:59.4]} 40. Bf3 {[%clk 0:01:24.8]}
40... Rf6 {[%clk 0:00:56.1]} 41. h3 {[%clk 0:01:15.8]} 41... h6 {[%clk
0:00:55.3]} 42. h4 {[%clk 0:01:00.3]} 42... Rd6 {[%clk 0:00:55.2]} 43. Be4
{[%clk 0:00:56.8]} 43... Rf6 {[%clk 0:00:54.6]} 44. Bf3 {[%clk 0:00:56.3]} 44...
Rg6 {[%clk 0:00:54.9]} 45. d6 {[%clk 0:00:39.4]} 45... Rxd6 {[%clk 0:00:54.4]}
46. Bh5 {[%clk 0:00:36.1]} 46... Rd2 {[%clk 0:00:51.3]} 0-1

[Event "Early-Titled-Tuesday-Blitz-October-03-2023"]
[Site "Chess.com"]
[Date "2023.10.03"]
[Round "6"]
[White "Let_it_be_1"]
[Black "ValentunHulka"]
[Result "0-1"]
[WhiteElo "2623"]
[BlackElo "2788"]
[TimeControl "180+1"]
[EndTime "9:07:05 PDT"]
[Termination "ValentunHulka won by resignation"]

1. e4 {[%clk 0:03:00.9]} 1... c5 {[%clk 0:02:59.9]} 2. Nf3 {[%clk 0:03:00.5]}
2... Nf6 {[%clk 0:03:00.6]} 3. e5 {[%clk 0:02:59.7]} 3... Nd5 {[%clk 0:03:00.6]}
4. Nc3 {[%clk 0:02:59.4]} 4... e6 {[%clk 0:03:00.6]} 5. Nxd5 {[%clk 0:02:58.6]}
5... exd5 {[%clk 0:03:01.5]} 6. d4 {[%clk 0:02:55.6]} 6... Nc6 {[%clk
0:03:01.8]} 7. Be2 {[%clk 0:02:47.9]} 7... cxd4 {[%clk 0:02:58.7]} 8. Nxd4
{[%clk 0:02:42.1]} 8... d6 {[%clk 0:02:58.7]} 9. exd6 {[%clk 0:02:37.6]} 9...
Bxd6 {[%clk 0:02:59.6]} 10. Nxc6 {[%clk 0:02:12.4]} 10... bxc6 {[%clk
0:02:58.1]} 11. O-O {[%clk 0:02:11.1]} 11... O-O {[%clk 0:02:58.4]} 12. c4
{[%clk 0:02:10.4]} 12... d4 {[%clk 0:02:46.5]} 13. Bf3 {[%clk 0:02:06.4]} 13...
Rb8 {[%clk 0:02:46.9]} 14. Bxc6 {[%clk 0:01:55.4]} 14... Qc7 {[%clk 0:02:44.4]}
15. Bd5 {[%clk 0:01:53]} 15... Bxh2+ {[%clk 0:02:42.8]} 16. Kh1 {[%clk
0:01:53.1]} 16... Be5 {[%clk 0:02:41.5]} 17. Re1 {[%clk 0:01:43.8]} 17... Bf6
{[%clk 0:02:22.4]} 18. b3 {[%clk 0:01:40.1]} 18... Bb7 {[%clk 0:02:16.7]} 19.
Bxb7 {[%clk 0:01:34.2]} 19... Qxb7 {[%clk 0:02:14.1]} 20. Qd3 {[%clk 0:01:29.2]}
20... Rfe8 {[%clk 0:02:08.1]} 21. Bf4 {[%clk 0:01:28.4]} 21... Rbd8 {[%clk
0:02:05.1]} 22. Kg1 {[%clk 0:01:21.8]} 22... h6 {[%clk 0:02:04.9]} 23. f3 {[%clk
0:01:17.1]} 23... Re3 {[%clk 0:01:44.9]} 24. Bxe3 {[%clk 0:01:10]} 24... dxe3
{[%clk 0:01:45.1]} 25. Qe4 {[%clk 0:01:10.3]} 25... Qxe4 {[%clk 0:01:28.9]} 26.
fxe4 {[%clk 0:01:10.3]} 26... Bxa1 {[%clk 0:01:25.8]} 27. Rxa1 {[%clk
0:01:07.3]} 27... Rd4 {[%clk 0:01:14.7]} 28. Kf1 {[%clk 0:01:02.9]} 28... Rxe4
{[%clk 0:01:04.4]} 29. Ke2 {[%clk 0:01:02.4]} 29... Kf8 {[%clk 0:01:04.2]} 30.
Rf1 {[%clk 0:00:57.6]} 30... Ke7 {[%clk 0:00:59.8]} 31. Rf3 {[%clk 0:00:57.3]}
31... Ke6 {[%clk 0:00:57.2]} 32. Rxe3 {[%clk 0:00:57.5]} 32... Ke5 {[%clk
0:00:57.7]} 33. b4 {[%clk 0:00:49.7]} 33... f5 {[%clk 0:00:52.7]} 34. Kd3 {[%clk
0:00:48.9]} 34... Rxe3+ {[%clk 0:00:48.9]} 35. Kxe3 {[%clk 0:00:48.7]} 35... g5
{[%clk 0:00:49.4]} 36. a4 {[%clk 0:00:45.6]} 36... h5 {[%clk 0:00:46.6]} 37. a5
{[%clk 0:00:44.3]} 37... g4 {[%clk 0:00:40.5]} 38. g3 {[%clk 0:00:41.5]} 38...
h4 {[%clk 0:00:29.8]} 39. gxh4 {[%clk 0:00:34.4]} 39... f4+ {[%clk 0:00:30]} 40.
Kf2 {[%clk 0:00:32.6]} 40... Ke4 {[%clk 0:00:20.8]} 41. h5 {[%clk 0:00:31.2]}
41... g3+ {[%clk 0:00:21.1]} 42. Kg2 {[%clk 0:00:30]} 42... f3+ {[%clk
0:00:17.5]} 43. Kxg3 {[%clk 0:00:30.1]} 43... Ke3 {[%clk 0:00:18.1]} 44. h6
{[%clk 0:00:21.8]} 44... f2 {[%clk 0:00:19]} 45. h7 {[%clk 0:00:15.1]} 45...
f1=Q {[%clk 0:00:18.5]} 46. h8=Q {[%clk 0:00:13.7]} 46... Qg1+ {[%clk
0:00:18.9]} 47. Kh4 {[%clk 0:00:13.4]} 47... Qh1+ {[%clk 0:00:19.6]} 0-1

[Event "Early-Titled-Tuesday-Blitz-October-03-2023"]
[Site "Chess.com"]
[Date "2023.10.03"]
[Round "6"]
[White "Beca95"]
[Black "Iball95"]
[Result "1-0"]
[WhiteElo "3019"]
[BlackElo "2768"]
[TimeControl "180+1"]
[EndTime "9:07:06 PDT"]
[Termination "Beca95 won by resignation"]

1. Nf3 {[%clk 0:03:00.9]} 1... d5 {[%clk 0:02:59.5]} 2. c4 {[%clk 0:03:01]} 2...
e6 {[%clk 0:02:59.3]} 3. g3 {[%clk 0:03:00.6]} 3... Nf6 {[%clk 0:02:59.3]} 4.
Bg2 {[%clk 0:03:01.3]} 4... c5 {[%clk 0:02:59.6]} 5. O-O {[%clk 0:03:01.8]} 5...
Nc6 {[%clk 0:02:59.3]} 6. cxd5 {[%clk 0:02:59.9]} 6... exd5 {[%clk 0:03:00.2]}
7. d4 {[%clk 0:02:59.9]} 7... Be7 {[%clk 0:02:59.2]} 8. dxc5 {[%clk 0:02:58.9]}
8... Bxc5 {[%clk 0:03:00.1]} 9. a3 {[%clk 0:02:59.2]} 9... a5 {[%clk 0:02:59.4]}
10. Nc3 {[%clk 0:02:58.5]} 10... O-O {[%clk 0:02:57.2]} 11. Bg5 {[%clk 0:02:58]}
11... d4 {[%clk 0:02:57.4]} 12. Bxf6 {[%clk 0:02:55.8]} 12... Qxf6 {[%clk
0:02:58.3]} 13. Ne4 {[%clk 0:02:56.1]} 13... Qe7 {[%clk 0:02:58.2]} 14. Nxc5
{[%clk 0:02:56.6]} 14... Qxc5 {[%clk 0:02:58.9]} 15. Rc1 {[%clk 0:02:56.8]}
15... Qb6 {[%clk 0:02:58.9]} 16. Qd2 {[%clk 0:02:46.9]} 16... Bg4 {[%clk
0:02:45.6]} 17. h3 {[%clk 0:02:44.8]} 17... Bh5 {[%clk 0:02:44.1]} 18. g4 {[%clk
0:02:44.6]} 18... Bg6 {[%clk 0:02:43.8]} 19. Nh4 {[%clk 0:02:45.2]} 19... Rfe8
{[%clk 0:02:40]} 20. Nxg6 {[%clk 0:02:44.6]} 20... hxg6 {[%clk 0:02:40.9]} 21.
Rfd1 {[%clk 0:02:44.6]} 21... Rad8 {[%clk 0:02:40]} 22. Qc2 {[%clk 0:02:16.7]}
22... d3 {[%clk 0:02:33.3]} 23. Rxd3 {[%clk 0:02:16.4]} 23... Nd4 {[%clk
0:02:32.6]} 24. Rxd4 {[%clk 0:02:16.8]} 24... Qxd4 {[%clk 0:02:23.1]} 25. e3
{[%clk 0:02:17.1]} 25... Qd7 {[%clk 0:02:16.2]} 26. Qb3 {[%clk 0:02:12.5]} 26...
Re7 {[%clk 0:02:06]} 27. Qb6 {[%clk 0:02:04.4]} 27... a4 {[%clk 0:02:04.3]} 28.
Rc4 {[%clk 0:01:59.3]} 28... Qd1+ {[%clk 0:01:55.9]} 29. Kh2 {[%clk 0:01:58.8]}
29... Rd2 {[%clk 0:01:48.5]} 30. Rc8+ {[%clk 0:01:34.4]} 30... Kh7 {[%clk
0:01:47.1]} 31. Qb4 {[%clk 0:01:34.2]} 31... Rdd7 {[%clk 0:01:07.8]} 32. g5
{[%clk 0:01:26.6]} 32... Qd6+ {[%clk 0:01:06.1]} 33. Qxd6 {[%clk 0:01:27]} 33...
Rxd6 {[%clk 0:01:07]} 34. Rc4 {[%clk 0:01:26.6]} 34... Rd2 {[%clk 0:00:53.2]}
35. Kg3 {[%clk 0:01:26.1]} 35... Rxb2 {[%clk 0:00:52.1]} 36. Rxa4 {[%clk
0:01:26.1]} 36... b5 {[%clk 0:00:49.2]} 37. Ra8 {[%clk 0:01:25.3]} 37... Ra2
{[%clk 0:00:43.8]} 38. h4 {[%clk 0:01:25.5]} 38... b4 {[%clk 0:00:41.9]} 39.
axb4 {[%clk 0:01:25.1]} 39... Rb2 {[%clk 0:00:39.9]} 40. Rb8 {[%clk 0:01:24.3]}
40... Rc7 {[%clk 0:00:37.1]} 41. Bd5 {[%clk 0:01:20.1]} 41... Rd2 {[%clk
0:00:35.1]} 42. e4 {[%clk 0:01:11]} 42... Rc3+ {[%clk 0:00:34.3]} 43. f3 {[%clk
0:01:06.4]} 43... Rdd3 {[%clk 0:00:29.9]} 44. Kf4 {[%clk 0:01:06.7]} 44... f6
{[%clk 0:00:20.9]} 45. Bg8+ {[%clk 0:01:04.9]} 45... Kh8 {[%clk 0:00:20.1]} 46.
Bc4+ {[%clk 0:01:05.8]} 46... Kh7 {[%clk 0:00:20.2]} 47. Bxd3 {[%clk 0:01:06]}
47... fxg5+ {[%clk 0:00:21.1]} 48. Ke3 {[%clk 0:00:57.2]} 48... gxh4 {[%clk
0:00:20]} 49. Ra8 {[%clk 0:00:57.3]} 49... Rb3 {[%clk 0:00:19.7]} 50. b5 {[%clk
0:00:57.1]} 50... h3 {[%clk 0:00:20.3]} 51. Ra2 {[%clk 0:00:56.7]} 51... g5
{[%clk 0:00:06.4]} 52. Rh2 {[%clk 0:00:55.7]} 52... g4 {[%clk 0:00:06.6]} 53.
fxg4 {[%clk 0:00:55.5]} 53... g5 {[%clk 0:00:07.5]} 54. Rxh3+ {[%clk 0:00:55.8]}
54... Kg6 {[%clk 0:00:08.4]} 55. e5+ {[%clk 0:00:56.3]} 1-0

[Event "Early-Titled-Tuesday-Blitz-October-03-2023"]
[Site "Chess.com"]
[Date "2023.10.03"]
[Round "6"]
[White "Nbk90"]
[Black "DoctorCheckyll"]
[Result "1-0"]
[WhiteElo "2121"]
[BlackElo "2225"]
[TimeControl "180+1"]
[EndTime "9:07:06 PDT"]
[Termination "Nbk90 won on time"]

1. e4 {[%clk 0:03:00.9]} 1... d6 {[%clk 0:03:00.1]} 2. d4 {[%clk 0:03:00.1]}
2... Nf6 {[%clk 0:03:00.8]} 3. Nc3 {[%clk 0:03:00.4]} 3... g6 {[%clk 0:03:01.1]}
4. f3 {[%clk 0:02:56.7]} 4... a6 {[%clk 0:03:00]} 5. Be3 {[%clk 0:02:56.9]} 5...
b5 {[%clk 0:03:00.4]} 6. h4 {[%clk 0:02:56.7]} 6... h5 {[%clk 0:02:59.2]} 7. Qd2
{[%clk 0:02:56.6]} 7... Nbd7 {[%clk 0:02:58.7]} 8. Nh3 {[%clk 0:02:56.7]} 8...
Nb6 {[%clk 0:02:58.9]} 9. Ng5 {[%clk 0:02:55.1]} 9... Bb7 {[%clk 0:02:51.7]} 10.
Bd3 {[%clk 0:02:52.7]} 10... e5 {[%clk 0:02:33.9]} 11. O-O-O {[%clk 0:02:49.1]}
11... Bg7 {[%clk 0:02:29.1]} 12. dxe5 {[%clk 0:01:46.4]} 12... dxe5 {[%clk
0:02:27]} 13. Nxb5 {[%clk 0:01:46.7]} 13... O-O {[%clk 0:01:51]} 14. Nc3 {[%clk
0:01:44.7]} 14... Qe7 {[%clk 0:01:45.5]} 15. Rdg1 {[%clk 0:01:32.9]} 15... Rad8
{[%clk 0:01:41.9]} 16. Qe2 {[%clk 0:01:31.7]} 16... Qb4 {[%clk 0:01:34.2]} 17.
a3 {[%clk 0:01:29.4]} 17... Qa5 {[%clk 0:01:29.2]} 18. g4 {[%clk 0:01:24]} 18...
Na4 {[%clk 0:01:22.5]} 19. Nxa4 {[%clk 0:01:20.3]} 19... Qxa4 {[%clk 0:01:22]}
20. Bc4 {[%clk 0:01:02.7]} 20... Bc6 {[%clk 0:00:53.6]} 21. Bc5 {[%clk
0:00:53.4]} 21... hxg4 {[%clk 0:00:36.1]} 22. Bxf8 {[%clk 0:00:42.2]} 22... Rxf8
{[%clk 0:00:30.6]} 23. fxg4 {[%clk 0:00:40.5]} 23... Bb5 {[%clk 0:00:30.6]} 24.
Bxb5 {[%clk 0:00:37.9]} 24... Qxb5 {[%clk 0:00:31]} 25. Qxb5 {[%clk 0:00:33.3]}
25... axb5 {[%clk 0:00:31.4]} 26. Rf1 {[%clk 0:00:31.2]} 26... Nd7 {[%clk
0:00:28.6]} 27. Nf3 {[%clk 0:00:28.1]} 27... Nc5 {[%clk 0:00:27.5]} 28. Re1
{[%clk 0:00:24.4]} 28... f5 {[%clk 0:00:20.8]} 29. exf5 {[%clk 0:00:20.5]} 29...
gxf5 {[%clk 0:00:21.2]} 30. Nxe5 {[%clk 0:00:18.6]} 30... f4 {[%clk 0:00:14.6]}
31. Nf3 {[%clk 0:00:17.4]} 31... Rd8 {[%clk 0:00:10.1]} 32. h5 {[%clk
0:00:17.6]} 32... Kh7 {[%clk 0:00:07.8]} 33. g5 {[%clk 0:00:17.3]} 33... Bd4
{[%clk 0:00:06.2]} 34. Rd1 {[%clk 0:00:16.4]} 34... Be3+ {[%clk 0:00:06]} 35.
Kb1 {[%clk 0:00:17.3]} 35... Rg8 {[%clk 0:00:03.8]} 36. g6+ {[%clk 0:00:17.4]}
36... Kh6 {[%clk 0:00:04.4]} 37. Rd5 {[%clk 0:00:16.6]} 37... Ne4 {[%clk
0:00:04.5]} 38. Rd7 {[%clk 0:00:16.1]} 38... Rg7 {[%clk 0:00:02.7]} 39. Rxg7
{[%clk 0:00:15.7]} 39... Kxg7 {[%clk 0:00:03.2]} 40. Re1 {[%clk 0:00:15.2]}
40... Kh6 {[%clk 0:00:01.1]} 41. Ne5 {[%clk 0:00:13.1]} 1-0

[Event "Early-Titled-Tuesday-Blitz-October-03-2023"]
[Site "Chess.com"]
[Date "2023.10.03"]
[Round "6"]
[White "Sanyura"]
[Black "becemix"]
[Result "1-0"]
[WhiteElo "2667"]
[BlackElo "2514"]
[TimeControl "180+1"]
[EndTime "9:07:09 PDT"]
[Termination "Sanyura won by checkmate"]

1. e4 {[%clk 0:03:00.9]} 1... c5 {[%clk 0:02:51.6]} 2. Nf3 {[%clk 0:02:53]} 2...
a6 {[%clk 0:02:47]} 3. c3 {[%clk 0:02:46.2]} 3... d5 {[%clk 0:02:31.6]} 4. exd5
{[%clk 0:02:42.3]} 4... Nf6 {[%clk 0:02:30.7]} 5. d4 {[%clk 0:02:38.5]} 5...
cxd4 {[%clk 0:02:29.2]} 6. cxd4 {[%clk 0:02:38.7]} 6... Nxd5 {[%clk 0:02:26.4]}
7. Nc3 {[%clk 0:02:39.6]} 7... e6 {[%clk 0:02:17.1]} 8. Bc4 {[%clk 0:02:32.5]}
8... Nxc3 {[%clk 0:02:08.4]} 9. bxc3 {[%clk 0:02:32.4]} 9... Be7 {[%clk
0:02:06.3]} 10. O-O {[%clk 0:02:31.6]} 10... O-O {[%clk 0:02:02.6]} 11. Qe2
{[%clk 0:02:12.8]} 11... b5 {[%clk 0:01:59.2]} 12. Bd3 {[%clk 0:02:12]} 12...
Bb7 {[%clk 0:01:58.7]} 13. Ne5 {[%clk 0:02:05.4]} 13... Nd7 {[%clk 0:01:36]} 14.
Qh5 {[%clk 0:01:52.9]} 14... g6 {[%clk 0:01:26.9]} 15. Qe2 {[%clk 0:01:03]}
15... Nxe5 {[%clk 0:01:24.9]} 16. Qxe5 {[%clk 0:00:58.6]} 16... Bf6 {[%clk
0:01:14.6]} 17. Qg3 {[%clk 0:00:47.7]} 17... Rc8 {[%clk 0:01:00.5]} 18. Bh6
{[%clk 0:00:45.5]} 18... Re8 {[%clk 0:00:59.9]} 19. Rac1 {[%clk 0:00:44]} 19...
Qd5 {[%clk 0:00:49.6]} 20. Rfe1 {[%clk 0:00:34.6]} 20... Qxa2 {[%clk 0:00:45.6]}
21. Bf4 {[%clk 0:00:20.6]} 21... Qd5 {[%clk 0:00:38.1]} 22. Be4 {[%clk
0:00:19.8]} 22... Qd7 {[%clk 0:00:38.3]} 23. Qf3 {[%clk 0:00:19.8]} 23... Bxe4
{[%clk 0:00:37.5]} 24. Rxe4 {[%clk 0:00:20.7]} 24... Qd5 {[%clk 0:00:35.2]} 25.
h4 {[%clk 0:00:19.1]} 25... Bxh4 {[%clk 0:00:31.9]} 26. Be5 {[%clk 0:00:18.3]}
26... Bg5 {[%clk 0:00:27.6]} 27. Rce1 {[%clk 0:00:15]} 27... f5 {[%clk
0:00:26.8]} 28. Qg3 {[%clk 0:00:13.2]} 28... Bh6 {[%clk 0:00:18.6]} 29. Rh4
{[%clk 0:00:12.4]} 29... Bg7 {[%clk 0:00:18.4]} 30. Bxg7 {[%clk 0:00:09.5]}
30... Kxg7 {[%clk 0:00:18.4]} 31. Qg5 {[%clk 0:00:09.1]} 31... Rc7 {[%clk
0:00:14.6]} 32. Re3 {[%clk 0:00:06.6]} 32... Kg8 {[%clk 0:00:13.5]} 33. Reh3
{[%clk 0:00:05.1]} 33... Rg7 {[%clk 0:00:09.4]} 34. Rxh7 {[%clk 0:00:04.2]}
34... Rxh7 {[%clk 0:00:07.7]} 35. Qxg6+ {[%clk 0:00:04.6]} 35... Kf8 {[%clk
0:00:08]} 36. Rxh7 {[%clk 0:00:04.5]} 36... e5 {[%clk 0:00:04.9]} 37. Qg7#
{[%clk 0:00:03.5]} 1-0